Cogmind - Beta 14 @@@ ROGUE MODE // 2025.04.25 @ 10:47:38 Player: McSaucyNugget Result: Self-destructed Performance ------------- Evolutions (3) 1500 Regions Visited (6) 1200 Robots Destroyed (117) 585 Value Destroyed (3385) 3385 Prototype IDs (2) 40 Alien Tech Used (0) 0 Bonus (260) 260 TOTAL SCORE: 6970 Bonus ------- High Alert Combat Kills 66 Follower Combat Kills 201 Friendly Fire -7 Cogmind --------- Core Integrity 564/700 Matter 99/300 Energy 145/240 System Corruption 7% Temperature Cool (0) Movement Treading (237) Ox1 Location -7/Factory Parts ------- > --- POWER (1) -------- Nuclear Core > --- PROPULSION (3) --- Armored Treads Advanced Treads > --- UTILITY (6) ------ Large Storage Unit Improved Targeting Computer > --- WEAPON (3) ------- Beamcaster Advanced Assault Cannon Gauss Cannon > --- INVENTORY (15) --- Armored Treads High-capacity Storage Unit Kinecellerator High-powered Shotgun Gauss Rifle Gauss Rifle Flak Gun Mini Assault Cannon Heavy Rocket Launcher Heavy Rocket Launcher Improved Datajack Powered Hammer Peak State ------------ > --- POWER ------------ Light Nuclear Core > --- PROPULSION ------- Armored Treads Armored Treads Armored Treads > --- UTILITY ---------- Improved Cooling System Large Storage Unit Armor Integrity Analyzer Hardened Medium Armor Plating Improved Light Armor Plating Improved Shield Generator > --- WEAPON ----------- Beamcaster Advanced Assault Cannon Mini Assault Cannon > --- INVENTORY -------- Nuclear Core Armored Treads Armored Treads High-capacity Storage Unit Heavy Armor Plating Hacking Suite High-powered Shotgun High-powered Shotgun High-powered Shotgun Heavy Rocket Launcher Heavy Rocket Launcher Improved Datajack Powered Hammer [Rating: 49] Favorites ----------- Power Light Nuclear Core Engine Improved Deuterium Engine Power Core Light Nuclear Core Propulsion Armored Treads Treads Armored Treads Leg Aluminum Leg Wheel Compact Wheel Utility Large Storage Unit Device Improved Cooling System Storage Large Storage Unit Processor Improved Targeting Computer Hackware Hacking Suite Protection Medium Armor Plating Weapon Heavy Assault Rifle Energy Gun Beamcaster Ballistic Gun Heavy Assault Rifle Ballistic Cannon Advanced Assault Cannon Launcher Grenade Launcher Build | -11 -10 -10 -9 -9 -8 -7 ------- Run | Yrd Mat Min Mat Min Mat Fac Slots Evolved 6 | . . . 2 . 2 2 Power . | . . . . . . . Propulsion 1 | . . . 1 . . . Utility 4 | . . . . . 2 2 Weapon 1 | . . . 1 . . . Parts Attached 95 | 7 9 10 17 1 19 32 Power 10 | 1 2 1 . . 1 5 Engine 5 | 1 2 . . . 1 1 Core 5 | . . 1 . . . 4 Reactor . | . . . . . . . Propulsion 21 | 2 2 1 7 . 2 7 Treads 14 | 2 . . 4 . 2 6 Leg 6 | . 2 1 3 . . . Wheel 1 | . . . . . . 1 Hover . | . . . . . . . Flight . | . . . . . . . Utility 29 | 2 2 1 5 . 9 10 Device 10 | 1 1 1 1 . 3 3 Storage 5 | 1 . . 2 . 2 . Processor 3 | . . . . . 1 2 Hackware 1 | . . . . . . 1 Protection 10 | . 1 . 2 . 3 4 Artifact . | . . . . . . . Weapon 35 | 2 3 7 5 1 7 10 Energy Gun 8 | . . 5 1 1 1 . Energy Cannon . | . . . . . . . Ballistic Gun 13 | 2 2 . 2 . 5 2 Ballistic Cannon 6 | . . . 1 . . 5 Launcher 8 | . 1 2 1 . 1 3 Special Weapon . | . . . . . . . Impact Weapon . | . . . . . . . Slashing Weapon . | . . . . . . . Piercing Weapon . | . . . . . . . Special Melee Weapon . | . . . . . . . Unidentified Prototypes 2 | . . . . . 1 1 Parts Lost 12 | . 2 . . . 1 9 Power 2 | . 1 . . . . 1 Propulsion 2 | . . . . . . 2 Utility 8 | . 1 . . . 1 6 Weapon . | . . . . . . . Highest Loss Streak 4 | . 1 . . . 1 4 To Critical Strikes 1 | . . . . . . 1 Average Slot Usage (%) 97 | . 99 100 99 100 97 93 Engine 4 | . 13 . . . 6 1 Core 5 | . . 13 11 11 2 5 Treads 24 | . 26 . 18 33 26 22 Leg 3 | . 1 28 14 . . . Device 8 | . 12 12 3 . 8 10 Storage 10 | . 14 14 10 11 9 7 Processor 1 | . . . . . 1 5 Protection 9 | . . 1 7 11 15 12 Energy Gun 8 | . . 25 13 10 8 7 Ballistic Gun 15 | . 27 1 9 22 18 5 Ballistic Cannon 2 | . . . 8 . . 8 Peak Build Rating 49 | 9 9 17 25 27 38 49 Average Rating 27 | 5 7 16 21 26 34 43 On Entrance 17 | . 9 7 17 22 27 38 Naked Turns . | . . . . . . . Heaviest Build 101 | 12 17 19 101 41 69 70 Greatest Support 62 | 40 40 22 60 60 60 62 Greatest Overweight (x) 4 | . 4 . 1 . 1 1 Average Overweight (x) . | . . . . . . . Largest Inventory Capacity 25 | 8 8 8 25 15 20 15 Average Capacity 12 | 7 8 8 10 15 15 15 Most Carried 15 | 6 8 8 8 11 15 15 Average Carried 11 | 3 7 7 7 9 14 13 Final Capacity 15 | 8 8 8 15 15 15 15 Final Carried 15 | 6 7 8 7 11 15 12 Class Distribution -------------------- 59% | Tank 25% | Mutant 15% | Gunner Dominant Class ---------------- Mutant | -10/Materials Mutant | -10/Mines Tank | -9/Materials Tank | -9/Mines Tank | -8/Materials Tank | -7/Factory Resources | -11 -10 -10 -9 -9 -8 -7 ----------- Run | Yrd Mat Min Mat Min Mat Fac Matter Collected 2483 | 98 519 157 363 52 531 763 Remotely . | . . . . . . . Salvage Created 3674 | 12 634 84 451 190 1281 1022 Parts 236 | 1 48 8 35 13 58 73 Haulers Intercepted 8 | . . . 1 . 4 3 Recyclers Shooed 5 | . 1 . 1 . 1 2 Parts Field Recycled . | . . . . . . . Retrieved Matter . | . . . . . . . Parts Self-Destructed . | . . . . . . . Prevented . | . . . . . . . Kills | -11 -10 -10 -9 -9 -8 -7 ------- Run | Yrd Mat Min Mat Min Mat Fac Combat Hostiles Destroyed 80 | . 15 4 8 4 21 28 Guns 49 | . 12 . 4 4 20 9 Cannons 10 | . . . 1 . . 9 AOE 21 | . 3 4 3 . 1 10 Classes Destroyed 16 | 1 6 1 2 1 1 4 Worker 7 | . 4 . . 1 . 2 Builder 7 | . 1 2 2 1 . 1 Tunneler 3 | 1 1 . 1 . . . Hauler 8 | . . . 1 . 4 3 Recycler 7 | . 1 . 2 . 4 . Mechanic 2 | . . 1 . . . 1 Watcher 3 | . 1 . 2 . . . Swarmer 21 | . 6 2 6 1 2 4 Grunt 33 | . 9 2 . 2 12 8 Brawler 1 | . . . . . . 1 Duelist 2 | . . . . 1 1 . Protector 1 | . . . . . . 1 Sentry 11 | . . . 2 . 5 4 Specialist 5 | . . . . . . 5 Hunter 4 | . . . . . 1 3 Programmer 2 | . . . . . . 2 Best Kill Streak 10 | 1 6 7 10 3 4 7 Combat Bots Only 6 | . 3 4 4 3 3 6 Max Kills in Single Turn 4 | 1 2 2 3 2 1 4 Gunslinging 1 | . . . . 1 . . Exploded 4 | . 1 1 3 . 1 4 Melee . | . . . . . . . Uniques/NPCs Destroyed . | . . . . . . . Combat | -11 -10 -10 -9 -9 -8 -7 -------- Run | Yrd Mat Min Mat Min Mat Fac Hostile Shots Fired 505 | . 69 11 26 10 77 312 Missed 146 | . 19 6 6 2 18 95 Damage Taken 4858 | . 600 85 266 106 907 2894 Core 373 | . 114 17 16 . 90 136 Absorbed by Shields 239 | . . . . . . 239 Regen/Repaired (Parts) 220 | . . . . . 220 . Core Remaining (%) 81 | 100 . 47 . 96 83 . Volleys Fired 210 | 3 59 8 22 7 52 59 Largest 3 | 2 2 2 3 3 3 3 Hottest 171 | 40 40 93 152 121 123 171 Shots Fired 520 | 6 96 11 63 21 151 172 Gun 420 | 6 89 3 51 21 149 101 Cannon 77 | . . . 11 . . 66 Launcher 23 | . 7 8 1 . 2 5 Special . | . . . . . . . Kinetic 357 | 6 89 . 37 14 99 112 Thermal 132 | . . 3 17 7 50 55 Explosive 23 | . 7 8 1 . 2 5 Electromagnetic 8 | . . . 8 . . . Robot Hit Streak 20 | 3 11 5 12 6 13 20 Robot Miss Streak 7 | 1 5 1 5 4 4 7 Penetration Max 1 | . . . . . . 1 Secondary Targets 6 | . 1 . . 1 4 . Max Gunslinging Chain 1 | . 1 . . 1 1 . Shots Hit Robots 343 | 4 63 5 34 10 100 127 Core Hits 225 | 1 36 10 18 6 53 101 Critical Kills 1 | . 1 . . . . . Critical Parts Destroyed . | . . . . . . . Critical Strikes 16 | . 1 . . . 7 8 Burn 12 | . . . . . 7 5 Destroy 1 | . 1 . . . . . Blast 3 | . . . . . . 3 Melee Attacks . | . . . . . . . Impact . | . . . . . . . Slashing . | . . . . . . . Piercing . | . . . . . . . Sneak Attacks . | . . . . . . . Combat Hostiles . | . . . . . . . Follow-up Attacks . | . . . . . . . Damage Inflicted 9722 | 47 999 547 797 209 2300 4823 Guns 5205 | 47 707 35 496 184 1947 1789 Cannons 1323 | . . . 142 . . 1181 Explosions 3097 | . 292 512 159 . 295 1839 Melee . | . . . . . . . Ramming 97 | . . . . 25 58 14 Kinetic 4393 | 47 707 . 361 81 1164 2033 Thermal 2124 | . . 35 241 103 783 962 Explosive 2742 | . 292 512 117 . 295 1526 Electromagnetic 366 | . . . 78 . . 288 Impact . | . . . . . . . Slashing . | . . . . . . . Piercing . | . . . . . . . Highest Corruption 7 | . . . . . 1 7 Average Corruption 3 | . . . . . 1 4 Corruption Purged . | . . . . . . . Corruption Blocked . | . . . . . . . Effects 21 | . . . . . 3 18 Message Errors 3 | . . . . . 1 2 Matter Fused 1 | . . . . . . 1 Heat Flow Errors 3 | . . . . . . 3 Energy Discharges 3 | . . . . . 1 2 Parts Rejected 2 | . . . . . . 2 Data Loss (minor) 5 | . . . . . 1 4 Data Loss (major) 1 | . . . . . . 1 Misfires 2 | . . . . . . 2 Weapon Failures 1 | . . . . . . 1 Overload Shots . | . . . . . . . Overflow Damage 128 | . 16 29 2 . 18 63 Projectiles 22 | . . . 2 . . 20 Explosions 106 | . 16 29 . . 18 43 Melee . | . . . . . . . Knockbacks 14 | . . . 1 . 1 12 Impact 1 | . . . . . 1 . Kinetic 12 | . . . 1 . . 11 Secondary 1 | . . . . . . 1 Self-Inflicted Damage 74 | . 64 10 . . . . Shots 3 | . 2 1 . . . . Rammed 16 | 1 1 . . 3 9 2 Targets Rammed 20 | 1 1 . . 4 11 3 Kicked . | . . . . . . . Crushed 4 | . . . . 1 2 1 Highest Temperature 488 | . 6 . 488 296 165 223 Average Temperature 80 | . 2 . 158 133 47 30 Received Heat Transfer 1235 | . 174 33 72 24 513 419 Effects 5 | . . . 5 . . . Shutdowns 2 | . . . 2 . . . Energy Bleed 2 | . . . 2 . . . Interference 1 | . . . 1 . . . Siege Activations . | . . . . . . . Robots Corrupted 1 | . . . . . . 1 Combat Hostiles . | . . . . . . . Parts Fried . | . . . . . . . Impact Corruptions . | . . . . . . . Robots Melted . | . . . . . . . Combat Hostiles . | . . . . . . . Parts Melted 2 | . . . . . 1 1 Heat Transferred 4577 | . . 74 420 185 1887 2011 Parts Sabotaged . | . . . . . . . Parts Stolen . | . . . . . . . Parts Stripped . | . . . . . . . Power Chain Reactions 2 | . . . 1 . . 1 Alert | -11 -10 -10 -9 -9 -8 -7 ------- Run | Yrd Mat Min Mat Min Mat Fac Peak Influence 566 | 5 208 260 254 254 327 566 Initial 148 | . 3 58 23 99 . 148 Average 139 | 1 67 166 110 76 105 289 Maximum Alert Level 2 | . 1 1 1 1 1 2 Low Security (%) 71 | 100 94 47 77 99 78 27 Level 1 25 | . 5 52 22 . 21 58 Level 2 3 | . . . . . . 14 Level 3 . | . . . . . . . Level 4 . | . . . . . . . Level 5 . | . . . . . . . High Security . | . . . . . . . Max Security . | . . . . . . . Squads Dispatched 14 | . 4 2 2 . 1 5 Investigation 4 | . 2 1 1 . . . Extermination 2 | . . . . . . 2 Reinforcement 7 | . 2 . 1 . 1 3 Assault 1 | . . 1 . . . . Garrison . | . . . . . . . Intercept . | . . . . . . . Searches Triggered . | . . . . . . . Construction Impeded 1 | . . . 1 . . . Haulers Reinforced 2 | . . . . . . 2 Active Scanning Responses . | . . . . . . . Cargo Convoy Interrupts 1 | . . . . . . 1 Stealth | -11 -10 -10 -9 -9 -8 -7 --------- Run | Yrd Mat Min Mat Min Mat Fac Distress Signals 6 | . . . 3 . 3 . Communications Jammed . | . . . . . . . Distress Signals . | . . . . . . . Times Spotted 126 | . 22 6 21 5 30 42 Peak Tracking Total 10 | . 4 3 5 3 4 10 Tactical Retreats 4 | . . . . 1 2 1 Traps | -11 -10 -10 -9 -9 -8 -7 ------- Run | Yrd Mat Min Mat Min Mat Fac Traps Triggered 1 | . . . . . 1 . Indirectly . | . . . . . . . Trap Hack Attempts . | . . . . . . . Triggered . | . . . . . . . Disarmed . | . . . . . . . Reprogrammed . | . . . . . . . Reused . | . . . . . . . Traps Extracted . | . . . . . . . Installed . | . . . . . . . Triggered 1 | . . . . . . 1 Machines | -11 -10 -10 -9 -9 -8 -7 ---------- Run | Yrd Mat Min Mat Min Mat Fac Machines Disabled 11 | . 2 . 1 2 . 6 Max in Single Turn 2 | . 1 . 1 1 . 2 Machines Repaired . | . . . . . . . Machines Dismantled . | . . . . . . . Machines Sabotaged . | . . . . . . . Overloaded Fab Kills . | . . . . . . . Hacking | -11 -10 -10 -9 -9 -8 -7 --------- Run | Yrd Mat Min Mat Min Mat Fac Machines Accessed 18 | . 5 1 2 1 7 2 Terminals 13 | . 5 . 2 . 5 1 Fabricators . | . . . . . . . Repair Stations 3 | . . . . . 2 1 Recycling Units . | . . . . . . . Scanalyzers . | . . . . . . . Garrison Access . | . . . . . . . Total Hacks 34 | . 12 1 3 1 14 3 Successful 19 | . 5 1 2 1 10 . Failed 15 | . 7 . 1 . 4 3 Catastrophic . | . . . . . . . Database Lockouts . | . . . . . . . Manual 9 | . 4 . 2 . 3 . Terminals 25 | . 12 . 3 . 8 2 Fabricators . | . . . . . . . Repair Stations 7 | . . . . . 6 1 Recycling Units . | . . . . . . . Scanalyzers . | . . . . . . . Garrison Access . | . . . . . . . Terminal Hacks 12 | . 4 1 2 1 4 . Open Door 2 | . . 1 . 1 . . Branch Access Points 1 | . . . . . 1 . Alert Level 3 | . 1 . 1 . 1 . Unreport Threat 2 | . 1 . 1 . . . Recall Reinforcements 1 | . 1 . . . . . Hauler Manifests 1 | . . . . . 1 . Zone Layout 2 | . 1 . . . 1 . Fabricator Hacks . | . . . . . . . Repair Station Hacks 6 | . . . . . 6 . Scan Component 3 | . . . . . 3 . Repair 3 | . . . . . 3 . Recycling Unit Hacks . | . . . . . . . Scanalyzer . | . . . . . . . Garrison Access Hacks . | . . . . . . . Unauthorized Hacks 1 | . 1 . . . . . Terminals 1 | . 1 . . . . . Assimilate 1 | . 1 . . . . . Fabricators . | . . . . . . . Repair Stations . | . . . . . . . Recycling Units . | . . . . . . . Scanalyzers . | . . . . . . . Garrison Access . | . . . . . . . Data Cores Recovered 2 | . . . 1 . 1 . Used 2 | . . . 1 . 1 . Hacking Detections 12 | . 3 . 2 . 5 2 Full Trace Events 2 | . 2 . . . . . Feedback Events . | . . . . . . . Feedback Blocked . | . . . . . . . Robot Schematics Acquired . | . . . . . . . Robots Built . | . . . . . . . Authchips . | . . . . . . . Time . | . . . . . . . Total Robot Build Rating . | . . . . . . . Part Schematics Acquired . | . . . . . . . Parts Built . | . . . . . . . Authchips . | . . . . . . . Time . | . . . . . . . Total Part Build Rating . | . . . . . . . Parts Repaired 3 | . . . . . 3 . Time 126 | . . . . . 126 . Parts Recycled . | . . . . . . . Recycled Matter . | . . . . . . . Retrieved Matter . | . . . . . . . Retrieved Components . | . . . . . . . Parts Scanalyzed . | . . . . . . . Part Schematics Acquired . | . . . . . . . Parts Damaged . | . . . . . . . Bothacking | -11 -10 -10 -9 -9 -8 -7 ------------ Run | Yrd Mat Min Mat Min Mat Fac Used RIF Installer . | . . . . . . . Robots Hacked . | . . . . . . . Non-combat . | . . . . . . . Combat . | . . . . . . . Robot Hacks Applied . | . . . . . . . Relay Couplers Released . | . . . . . . . Fabnet Peak Effective % . | . . . . . . . Robots Rewired . | . . . . . . . Allies Hacked . | . . . . . . . Hacks Repelled . | . . . . . . . Allies | -11 -10 -10 -9 -9 -8 -7 -------- Run | Yrd Mat Min Mat Min Mat Fac Total Allies 4 | . . 1 . 3 . . Largest Group 3 | . . 1 1 3 3 . Highest-Rated Group 40 | . . 31 31 40 40 . Highest-Rated Ally 31 | . . 31 31 16 16 . Total Orders 1 | . . . . . 1 . GUARD 1 | . . . . . 1 . Ally Attacks 35 | . . 12 8 . 15 . Total Damage 468 | . . 126 148 . 194 . Kills 8 | . . 2 3 . 3 . Allies Corrupted . | . . . . . . . Allies Melted . | . . . . . . . Intel | -11 -10 -10 -9 -9 -8 -7 ------- Run | Yrd Mat Min Mat Min Mat Fac Robot Analysis Total . | . . . . . . . Derelict Logs Recovered 2 | . . 1 . 1 . . Drone Launches . | . . . . . . . Drone Recoveries . | . . . . . . . Exploration | -11 -10 -10 -9 -9 -8 -7 ------------- Run | Yrd Mat Min Mat Min Mat Fac Turns Passed 7362 | 103 1190 525 780 1238 1877 1649 Spaces Moved 3825 | 50 618 454 442 709 828 724 Core 4 | 3 1 . . . . . Treads 3065 | 47 562 . 195 709 828 724 Legs 756 | . 55 454 247 . . . Wheels . | . . . . . . . Hover . | . . . . . . . Flight . | . . . . . . . Fastest Speed 50 | 50 120 105 110 170 170 161 Average Speed 158 | 153 156 105 141 170 172 178 Slowest Speed 250 | 160 250 120 250 170 250 250 Overloaded Moves . | . . . . . . . Propulsion Burnouts . | . . . . . . . Robots Hopped . | . . . . . . . Cave-ins Triggered . | . . . . . . . Exploration Rate (%) 61 | 4 95 98 38 101 69 23 Regions Visited 6 Branch Regions 2 Pre-discovered Areas . | . . . . . . . Known Exits Taken . | . . . . . . . Unknown Exits Taken 6 | 1 1 1 1 1 1 . Scrap Searched 3 | . . 1 . 2 . . Spaces Dug 1 | . . . . . . 1 Terrain Destroyed 168 | . 37 50 14 . 13 54 Melee . | . . . . . . . Projectile 19 | . . . 2 . . 17 AOE 149 | . 37 50 12 . 13 37 Terrain Rammed . | . . . . . . . Walls Destroyed . | . . . . . . . Machines Disabled . | . . . . . . . Actions | -11 -10 -10 -9 -9 -8 -7 --------- Run | Yrd Mat Min Mat Min Mat Fac Total 4675 | 67 745 485 549 723 1164 942 Wait 423 | . 53 8 44 . 218 100 Move 3820 | 50 617 453 441 708 827 724 Hop . | . . . . . . . Pick Up 50 | 7 3 2 10 3 18 7 Fast Attach 34 | 6 2 2 5 . 6 13 Attach 22 | 1 2 . 3 . 7 9 Detach 8 | . . . . . 3 5 Swap 39 | . 5 8 9 1 6 10 Drop 50 | . 3 4 15 . 16 12 Fire 210 | 3 59 8 22 7 52 59 Melee . | . . . . . . . Ram . | . . . . . . . Kick . | . . . . . . . Crush 19 | . 1 . . 4 11 3 Escape Stasis . | . . . . . . . Rewire . | . . . . . . . Trap . | . . . . . . . Miscellaneous . | . . . . . . . Route ------- -11/Scrapyard -10/Materials (discovered 4 exits: *Mat x3 / *Min) -10/Mines (discovered 3 exits: *Mat x2 / [*Exi]) -9/Materials (discovered 3 exits: *Mat / *Min x2) -9/Mines (discovered 2 exits: *Mat x2) -8/Materials (discovered 3 exits: *Fac x3) -7/Factory (discovered 1 exit: [*Fac]) History --------- Turn | Location | Event 15 | -11/Scrapyard | Discovered new exit (range 16) 104 | -11/Scrapyard | Entered Materials 316 | -10/Materials | Build established: Mutant 450 | -10/Materials | Discovered new exit (range 17) 785 | -10/Materials | Discovered new exit (range 13) 910 | -10/Materials | Discovered new exit (range 14) 1097 | -10/Materials | Discovered new exit (range 14) 1294 | -10/Materials | Entered Mines 1296 | -10/Mines | Discovered new exit (range 10) 1309 | -10/Mines | Met a Derelict shopkeep closing up shop 1348 | -10/Mines | Met a Derelict testing a Signal Generator 1390 | -10/Mines | Discovered new exit (range 5) 1407 | -10/Mines | Core integrity fell below 50% 1443 | -10/Mines | A weapon hastily lodged in a ceiling crevice suddenly fell to the ground 1596 | -10/Mines | Learned Materials emergency access door positions 1676 | -10/Mines | Deemed a non-threat by the Exiles lab entrance 1677 | -10/Mines | Discovered new exit (range 5) 1819 | -10/Mines | Entered Materials 1819 | -9/Materials | Accompanied by 1 ally 1819 | -9/Materials | Evolved 2 slots: Propulsion x1, Weapon x1 1877 | -9/Materials | Discovered new exit (range 16) 2192 | -9/Materials | Discovered new exit (range 13) 2344 | -9/Materials | Build established: Tank 2402 | -9/Materials | Discovered new exit (range 15) 2599 | -9/Materials | Entered Mines 2807 | -9/Mines | Found the Drone Emporium 2816 | -9/Mines | Found Prototype Device 2838 | -9/Mines | Learned location of 1 exit from Lower Caves 2856 | -9/Mines | Discovered new exit (range 13) 3067 | -9/Mines | Discovered new exit (range 6) 3075 | -9/Mines | Assisted by bots powering up and referring to "LRC-V3" 3223 | -9/Mines | Received a Rocket Launcher from a helpful Derelict 3837 | -9/Mines | Entered Materials 3837 | -8/Materials | Accompanied by 3 allies 3837 | -8/Materials | Evolved 2 slots: Utility x2 4375 | -8/Materials | Discovered new exit (range 5) 4931 | -8/Materials | Repaired Arm. Treads 4982 | -8/Materials | Repaired Beamcaster 5059 | -8/Materials | Repaired Arm. Treads 5136 | -8/Materials | Discovered new exit (range 15) 5619 | -8/Materials | Build established: Gunner 5698 | -8/Materials | Discovered new exit (range 4) 5714 | -8/Materials | Entered Factory 5714 | -7/Factory | Evolved 2 slots: Utility x2 5994 | -7/Factory | Build established: Tank 6331 | -7/Factory | Cargo convoy interrupted 7099 | -7/Factory | Build established: Gunner 7275 | -7/Factory | Discovered new exit (range 16) 7363 | -7/Factory | Self-destructed Last Messages --------------- 07321_ Slug penetrates X-67 Chaingunner. 07325_ X-67 Chaingunner destroyed. 07328_ K-01 Serf collects debris. 07328_ P-60 Hacker knocked back. 07330_ Penetrated by Slug. 07331_ P-60 Hacker knocked back. 07332_ K-01 Serf collects debris. 07336_ Penetrated by Slug. 07336_ Fusion Modulator explodes. 07339_ K-01 Serf collects debris. 07341_ Arm. Treads destroyed. 07344_ System corrupted: Component data lost. 07345_ Imp. Cooling System destroyed. 07347_ Recoil Stabilizer destroyed. 07350_ Acquired Nuclear Core. 07350_ Penetrated by Slug. 07350_ Knocked back. 07353_ P-60 Hacker resets X-67 Chaingunner, system corruption cleaned. 07355_ Hvy. Armor Plating destroyed. 07355_ Arm. Treads blasted off. Map ----- +----------------------------------------------------+ | ??# """"#???????????????????????????????????? | | ??# ????????????????????????????????????? | | ??# """"#???????????????????????????????????? | | ??# """"#???????????????????????????????????? | | ??# """"##############??????????????????????? | | ??# """"# #??????????????????????? | | ??# # """S""" ##?????????????????????? | | ??# # """ """ #?????????????????????? | | ??# # !#??????????????????????? | | ??# # ##?????????????????????? | | #########+#### ! ;##????????????????????? | | # ; #????????????????????? | | # ! ; ##???????????????????? | | # * ;;;############????????? | | # ! ;; # ???????? | | # ;; ! " ??????? | | ######## # ;; # !??????? | | ???????# ###""" ;;; # ??????? | | ???????# m ; % ] + ?????? | | ???????# p;% ! # ?????? | | ???????# k; # ????? | | ???????# % x# ! # ????? | | ???????# %= # # ????? | | ???????#########+####### # # ????? | | ???????????????????????# # [ #"" ????? | | ???????????????????????+ @H; # ????? | | ???????????????????????#;=%######+##########?????? | | ???????????????????????##; ;#????????????????????? | | ????????????????????????#;%##????????????????????? | | ????????????????????????## #?????????????????????? | | ?????????????????????????? #?????????????????????? | | ?????????????????????????? #?????????????????????? | | ?????????????????????????? ?????????????????????? | | ??????????????????????????< ?????????????????????? | | ??????????????????????????! ?????????????????????? | | ??????????????????????????###????????????????????? | | ?????????????????????????????????????????????????? | | ?????????????????????????????????????????????????? | | ?????????????????????????????????????????????????? | | ?????????????????????????????????????????????????? | | ?????????????????????????????????????????????????? | | ?????????????????????????????????????????????????? | | ?????????????????????????????????????????????????? | | ?????????????????????????????????????????????????? | | ?????????????????????????????????????????????????? | | ?????????????????????????????????????????????????? | | ?????????????????????????????????????????????????? | | | | | | | +----------------------------------------------------+ Best States ------------- Heat Dissipation 61 Energy Generation 16 Energy Capacity 290 Matter Stores 300 Matter Capacity 300 Sight Range 16 Terrain Scan Range 16 Terrain Scan Density 10 Base Temperature (-) 100 Armor Coverage 825 Evasion (%) 55 Targeting Accuracy 6 Armor Integrity Analysis 30 Recoil Reduction 7 Offensive Hacking 10 Item Schematics ----------------- None Robot Schematics ------------------ None Fabricated ------------ Nothing Alien Tech Used ----------------- None Achievements -------------- None Challenges ------------ None Game ------ Seed WarlordXenonGravjet Manual? 0 Play Time 00:49:45 Cumulative 15.5 hours Start 2025.04.25 @ 09:54:25 End 2025.04.25 @ 10:47:38 Sessions 1 Manual Loads 0 Difficulty Rogue Special Mode None Game No. 18 Rogue 18 Adventurer 0 Explorer 0 Win Type - Total 1 Types 1/0/0/0/0/0/0/0/0 Lore% 21 Gallery% 22 Achievement% 25 Wizard Run 0 Options --------- Layout 0 ASCII 0 Keyboard 1 Movement Vi Keybinds 0 Fullscreen 2 Font 18/SmallcapsGlow Map View 76x50 Zoom Use 0% Tactical HUD 1 Map Filters NONE Filters NONE Steam 1 RUN: c397fcc3-a3c3-448a-8619-4c63417d86dc